Cogmind - Beta 10.2 @@@ ROGUE MODE // 2021.07.25 @ 15:44:16 Player: Timm35 Result: Destroyed by L-31 Rogue with Katana Performance ------------- Evolutions (1) 500 Regions Visited (2) 400 Robots Destroyed (21) 105 Value Destroyed (632) 632 Prototype IDs (0) 0 Alien Tech Used (0) 0 Bonus (0) 0 TOTAL SCORE: 1637 Bonus ------- None Cogmind --------- Core Integrity 0/400 Matter 291/300 Energy 18/100 System Corruption 0% Temperature Cool (0) Movement Core (300) Ox5 Location -9/Materials Parts ------- > --- POWER (2) -------- (None) > --- PROPULSION (2) --- (None) > --- UTILITY (3) ------ Large Storage Unit > --- WEAPON (2) ------- Mining Laser > --- INVENTORY (10) --- (None) Peak State ------------ > --- POWER ------------ Ion Engine Light Ion Engine > --- PROPULSION ------- Aluminum Leg Aluminum Leg > --- UTILITY ---------- Large Storage Unit Shield Generator Shield Generator > --- WEAPON ----------- Small Laser Small Laser > --- INVENTORY -------- Light Ion Engine Small Laser Small Laser Small Laser Small Laser Small Laser Datajack Mining Laser [Rating: 11] Favorites ----------- Power Ion Engine Engine Ion Engine Propulsion Aluminum Leg Leg Aluminum Leg Utility Large Storage Unit Device Shield Generator Storage Large Storage Unit Weapon Small Laser Energy Gun Small Laser Ballistic Gun Assault Rifle Special Weapon Mining Laser Special Melee Weapon Datajack Build | -11 -10 -9 ------- Run | Scr Mat Mat Slots Evolved 2 | . . 2 Power 1 | . . 1 Propulsion . | . . . Utility 1 | . . 1 Weapon . | . . . Parts Attached 33 | 6 14 13 Power 6 | 1 3 2 Engine 6 | 1 3 2 Core . | . . . Reactor . | . . . Propulsion 6 | 2 2 2 Treads . | . . . Leg 6 | 2 2 2 Wheel . | . . . Hover . | . . . Flight . | . . . Utility 6 | 1 3 2 Device 3 | . 1 2 Storage 3 | 1 2 . Processor . | . . . Hackware . | . . . Protection . | . . . Artifact . | . . . Weapon 15 | 2 6 7 Energy Gun 12 | 1 6 5 Energy Cannon . | . . . Ballistic Gun 1 | 1 . . Ballistic Cannon . | . . . Launcher . | . . . Special Weapon 1 | . . 1 Impact Weapon . | . . . Slashing Weapon . | . . . Piercing Weapon . | . . . Special Melee Weapon 1 | . . 1 Unidentified Prototypes . | . . . Parts Lost 25 | . 9 16 Power 4 | . 1 3 Propulsion 5 | . 2 3 Utility 2 | . . 2 Weapon 14 | . 6 8 Highest Loss Streak 11 | . 4 11 Average Slot Usage (%) 81 | . 83 77 Engine 15 | . 13 19 Leg 22 | . 25 16 Device 3 | . 1 9 Storage 16 | . 19 11 Energy Gun 20 | . 20 19 Ballistic Gun 1 | . 2 . Naked Turns . | . . . Heaviest Build 39 | 13 39 28 Greatest Support 20 | 20 20 20 Greatest Overweight (x) 3 | 1 3 2 Average Overweight (x) . | . . 1 Largest Inventory Capacity 16 | 6 16 10 Average Capacity 9 | 4 10 10 Most Carried 11 | 4 11 9 Average Carried 5 | 2 5 6 Final Capacity 10 | 6 10 10 Final Carried 9 | 2 9 . Class Distribution -------------------- 100% | Mutant Dominant Class ---------------- Mutant | -10/Materials Mutant | -9/Materials Resources | -11 -10 -9 ----------- Run | Scr Mat Mat Matter Collected 514 | 216 207 91 Remotely . | . . . Salvage Created 735 | . 419 316 Parts 44 | . 20 24 Haulers Intercepted . | . . . Recyclers Shooed . | . . . Parts Field Recycled . | . . . Retrieved Matter . | . . . Parts Self-Destructed . | . . . Prevented . | . . . Kills | -11 -10 -9 ------- Run | Scr Mat Mat Combat Hostiles Destroyed 19 | . 10 9 Guns 18 | . 10 8 Cannons 1 | . . 1 Classes Destroyed 3 | . 1 2 Watcher 2 | . . 2 Swarmer 3 | . . 3 Grunt 16 | . 10 6 Best Kill Streak 5 | . 3 5 Combat Bots Only 3 | . 3 3 Max Kills in Single Turn 1 | . 1 1 Gunslinging . | . . . Exploded . | . . . Melee . | . . . Uniques/NPCs Destroyed . | . . . Combat | -11 -10 -9 -------- Run | Scr Mat Mat Damage Taken 2151 | . 892 1259 Core 561 | . 153 408 Absorbed by Shields 252 | . . 252 Core Remaining (%) 69 | 100 38 . Volleys Fired 116 | . 63 53 Largest 2 | . 2 2 Hottest 100 | . 80 100 Shots Fired 175 | . 84 91 Gun 173 | . 84 89 Cannon . | . . . Launcher . | . . . Special 2 | . . 2 Kinetic 21 | . 21 . Thermal 154 | . 63 91 Explosive . | . . . Electromagnetic . | . . . Robot Hit Streak 14 | . 14 10 Robot Miss Streak 6 | . 6 3 Penetration Max . | . . . Secondary Targets 4 | . 1 3 Max Gunslinging Chain 1 | . 1 1 Shots Hit Robots 120 | . 55 65 Core Hits 43 | . 22 21 Critical Hits . | . . . Critical Kills . | . . . Critical Parts Destroyed . | . . . Melee Attacks . | . . . Impact . | . . . Slashing . | . . . Piercing . | . . . Sneak Attacks . | . . . Combat Hostiles . | . . . Follow-up Attacks . | . . . Damage Inflicted 1469 | . 701 768 Guns 1421 | . 701 720 Cannons . | . . . Explosions . | . . . Melee . | . . . Ramming . | . . . Kinetic 221 | . 221 . Thermal 1248 | . 480 768 Explosive . | . . . Electromagnetic . | . . . Impact . | . . . Slashing . | . . . Piercing . | . . . Highest Corruption . | . . . Average Corruption . | . . . Corruption Purged . | . . . Overload Shots . | . . . Overflow Damage . | . . . Projectiles . | . . . Explosions . | . . . Melee . | . . . Knockbacks . | . . . Impact . | . . . Kinetic . | . . . Secondary . | . . . Self-Inflicted Damage . | . . . Shots . | . . . Rammed . | . . . Targets Rammed . | . . . Kicked . | . . . Crushed . | . . . Highest Temperature 401 | . 190 401 Average Temperature 108 | . 65 142 Received Heat Transfer 781 | . 507 274 Effects 2 | . . 2 Shutdowns 1 | . . 1 Energy Bleed 1 | . . 1 Siege Activations . | . . . Robots Corrupted . | . . . Combat Hostiles . | . . . Parts Fried . | . . . Impact Corruptions . | . . . Robots Melted . | . . . Combat Hostiles . | . . . Parts Melted 2 | . 2 . Heat Transferred 2978 | . 1253 1725 Parts Sabotaged . | . . . Parts Stolen . | . . . Parts Stripped . | . . . Power Chain Reactions . | . . . Missiles Intercepted . | . . . Alert | -11 -10 -9 ------- Run | Scr Mat Mat Peak Influence 265 | . 265 169 Initial . | . . . Average 79 | . 82 90 Maximum Alert Level 1 | . 1 . Low Security (%) 95 | 100 92 100 Level 1 4 | . 7 . Level 2 . | . . . Level 3 . | . . . Level 4 . | . . . Level 5 . | . . . High Security . | . . . Max Security . | . . . Squads Dispatched 5 | . 3 2 Investigation 2 | . 2 . Extermination . | . . . Reinforcement 3 | . 1 2 Assault . | . . . Garrison . | . . . Intercept . | . . . Construction Impeded . | . . . Haulers Reinforced . | . . . Stealth | -11 -10 -9 --------- Run | Scr Mat Mat Distress Signals 1 | . . 1 Communications Jammed . | . . . Distress Signals . | . . . Times Spotted 41 | . 17 24 Peak Tracking Total 8 | . 4 8 Tactical Retreats 7 | . 4 3 Traps | -11 -10 -9 ------- Run | Scr Mat Mat Traps Triggered 2 | . 2 . Indirectly . | . . . Trap Hack Attempts . | . . . Triggered . | . . . Disarmed . | . . . Reprogrammed . | . . . Reused . | . . . Traps Extracted . | . . . Installed . | . . . Triggered . | . . . Machines | -11 -10 -9 ---------- Run | Scr Mat Mat Machines Disabled . | . . . Max in Single Turn . | . . . Machines Sabotaged . | . . . Garrisons Compromised . | . . . Overloaded Fab Kills . | . . . Fab Network Shutdowns . | . . . Hacking | -11 -10 -9 --------- Run | Scr Mat Mat Machines Accessed 5 | . 4 1 Terminals 2 | . 2 . Fabricators . | . . . Repair Stations . | . . . Recycling Units 3 | . 2 1 Scanalyzers . | . . . Garrison Access . | . . . Total Hacks 10 | . 8 2 Successful 8 | . 6 2 Failed 2 | . 2 . Catastrophic . | . . . Database Lockouts . | . . . Manual . | . . . Terminals 6 | . 6 . Fabricators . | . . . Repair Stations . | . . . Recycling Units 4 | . 2 2 Scanalyzers . | . . . Garrison Access . | . . . Terminal Hacks 4 | . 4 . Record 4 | . 4 . Fabricator Hacks . | . . . Repair Station Hacks . | . . . Recycling Unit Hacks 4 | . 2 2 Process 1 | . . 1 Report Inventory 3 | . 2 1 Scanalyzer . | . . . Garrison Access Hacks . | . . . Unauthorized Hacks . | . . . Terminals . | . . . Fabricators . | . . . Repair Stations . | . . . Recycling Units . | . . . Scanalyzers . | . . . Garrison Access . | . . . Data Cores Recovered . | . . . Used . | . . . Hacking Detections 4 | . 3 1 Full Trace Events . | . . . Feedback Events . | . . . Feedback Blocked . | . . . Robot Schematics Acquired . | . . . Robots Built . | . . . Matter . | . . . Time . | . . . Total Robot Build Rating . | . . . Part Schematics Acquired . | . . . Parts Built . | . . . Matter . | . . . Time . | . . . Total Part Build Rating . | . . . Parts Repaired . | . . . Time . | . . . Parts Recycled . | . . . Recycled Matter 12 | . . 12 Retrieved Matter . | . . . Retrieved Components . | . . . Parts Scanalyzed . | . . . Part Schematics Acquired . | . . . Parts Damaged . | . . . Bothacking | -11 -10 -9 ------------ Run | Scr Mat Mat Used RIF Installer . | . . . Robots Hacked . | . . . Non-combat . | . . . Combat . | . . . Robot Hacks Applied . | . . . Relay Couplers Released . | . . . Robots Rewired . | . . . Allies Hacked . | . . . Hacks Repelled . | . . . Allies | -11 -10 -9 -------- Run | Scr Mat Mat Total Allies . | . . . Largest Group . | . . . Highest-Rated Group . | . . . Highest-Rated Ally . | . . . Total Orders . | . . . Ally Attacks . | . . . Total Damage . | . . . Kills . | . . . Allies Corrupted . | . . . Allies Melted . | . . . Intel | -11 -10 -9 ------- Run | Scr Mat Mat Robot Analysis Total . | . . . Derelict Logs Recovered . | . . . Drone Launches . | . . . Drone Recoveries . | . . . Exploration | -11 -10 -9 ------------- Run | Scr Mat Mat Turns Passed 1221 | 73 813 335 Spaces Moved 621 | 60 451 110 Core 48 | 24 24 . Treads . | . . . Legs 573 | 36 427 110 Wheels . | . . . Hover . | . . . Flight . | . . . Fastest Speed 50 | 50 120 150 Average Speed 138 | 100 139 153 Slowest Speed 200 | 120 200 180 Overloaded Moves . | . . . Propulsion Burnouts . | . . . Robots Hopped . | . . . Cave-ins Triggered . | . . . Exploration Rate (%) 31 | 4 73 18 Regions Visited 2 Branch Regions . Pre-discovered Areas . | . . . Known Exits Taken . | . . . Unknown Exits Taken 2 | 1 1 . Scrap Searched . | . . . Spaces Dug . | . . . Terrain Destroyed . | . . . Melee . | . . . Projectile . | . . . AOE . | . . . Terrain Rammed . | . . . Walls Destroyed . | . . . Machines Disabled . | . . . Actions | -11 -10 -9 --------- Run | Scr Mat Mat Total 804 | 71 551 182 Wait 3 | 1 1 1 Move 619 | 59 450 110 Hop . | . . . Pick Up 27 | 4 20 3 Fast Attach 6 | 5 1 . Attach 24 | 1 11 12 Detach 1 | . . 1 Swap 3 | . 2 1 Drop 5 | 1 3 1 Fire 116 | . 63 53 Melee . | . . . Ram . | . . . Kick . | . . . Crush . | . . . Escape Stasis . | . . . Rewire . | . . . Trap . | . . . Miscellaneous . | . . . Route ------- -11/Scrapyard -10/Materials (discovered 3 exits: *Mat / [*Min x2]) -9/Materials (discovered 1 exit: [*Min]) History --------- Turn | Location | Event 2 | -11/Scrapyard | Discovered new exit (range 16) 74 | -11/Scrapyard | Entered Materials 303 | -10/Materials | Discovered new exit (range 16) 310 | -10/Materials | Build established: Mutant 324 | -10/Materials | Lost 4 parts (1p2n1w) 405 | -10/Materials | Core integrity fell below 50% 803 | -10/Materials | Discovered new exit (range 16) 851 | -10/Materials | Discovered new exit (range 15) 887 | -10/Materials | Entered another Materials area 887 | -9/Materials | Evolved 2 slots: Power x1, Utility x1 1093 | -9/Materials | Lost 5 parts (1p1n1u2w) 1171 | -9/Materials | Discovered new exit (range 14) 1196 | -9/Materials | Core integrity fell below 50% 1211 | -9/Materials | Core integrity fell below 20% 1222 | -9/Materials | Destroyed by L-31 Rogue with Katana Last Messages --------------- 01136_ R-06 Scavenger collects Lgt. Ion Engine. 01139_ K-01 Serf collects debris. 01164_ Sml. Laser destroyed. 01171_ EXIT=FOUND 01176_ Sml. Laser destroyed. 01177_ K-01 Serf collects debris. 01182_ Lgt. Ion Engine destroyed. 01187_ Aluminum Leg destroyed. 01189_ Shield Generator destroyed. 01190_ G-34 Mercenary destroyed. 01197_ Aluminum Leg destroyed. 01200_ Sml. Laser destroyed. 01202_ Lgt. Ion Engine destroyed. 01202_ Sml. Laser destroyed. 01206_ K-01 Serf collects debris. 01212_ Sml. Laser destroyed. 01212_ Datajack destroyed. 01215_ G-34 Mercenary destroyed. 01216_ Acquired 11 matter. 01221_ K-01 Serf collects debris. Map ----- +----------------------------------------------------+ | ?????????????????????????????????????????????????? | | ###??????????????????????????????????????????????? | | #??????????????????????????????????????????????? | | #?????????????]!!??????????????????????????????? | | #???????????? ?????????????????????????????? | | ?????????????# #?????????????????????????????? | | ?????????????# #?????????????????????????????? | | ############### #?????????????????????????????? | | # + #?????????????????????????????? | | # #???# #?????????????????????????????? | | + #???# #?????????????????????????????? | | # #???# #??????? ?????????????????????? | | ########+##???# #??????? ?????????????????????? | | ##?????# #????# #??????? ?????????????????????? | | #######+###??# ######## ?????? #????????????? | | # // #?## ## # ?????< #????????????? | | # // #?# # "T" # ????? #????????????? | | # / =### #% # ???? #????????????? | | # *+% %%=! +* # #??? #????????????? | | ### [###=%%! #== # #### #?????????????? | | ??# #?#% = # # #?????????????? | | ??# #?###*######### +?????????????? | | ??# #???# ## !+ != #?????????????? | | ??##+########???# ## *k# != #?????????????? | | ?? ####### ## [=# ![ #?????????????? | | ?+ "T" ## =@# #?????????????? | | ?# /## [l #?????????????? | | ?#???"" ## # !! #?????????????? | | ?????"" ######### != #?????????????? | | ?????"" != #?????????????? | | ?????"" #?????????????? | | ?????"" #?????????????? | | ???? #?????????????? | | ??? ! #?????????????? | | ????#### ########## #?????????????? | | ???????# ?????????# """ #?????????????? | | ??????????????????# """ #?????????????? | | ??????????????????# """ #?????????????? | | ??????????????????#^ ^ """ #????????????? | | ??????????????????# ^ ? #????????????? | | ??????????????????# ?? +????????????? | | ??????????????????# "T"?? #????????????? | | ??????????????????# ""?????????????????? | | ??????????????????## ########??????????????????? | | ???????????????????# #?????????????????????????? | | ???????????????????# #?????????????????????????? | | ???????????????????? ??????????????????????????? | | ?????????????????????????????????????????????????? | | ?????????????????????????????????????????????????? | | ?????????????????????????????????????????????????? | +----------------------------------------------------+ Best States ------------- Heat Dissipation 28 Energy Generation 15 Energy Capacity 275 Matter Stores 300 Matter Capacity 300 Sight Range 16 Terrain Scan Density 10 Evasion (%) 50 Item Schematics ----------------- None Robot Schematics ------------------ None Fabricated ------------ Nothing Alien Tech Used ----------------- None Achievements -------------- None Challenges ------------ None Game ------ Seed ModifiedOverloadTendrils Manual? 0 Play Time 00:26:31 Cumulative 4.2 hours Start 2021.07.25 @ 15:03:56 End 2021.07.25 @ 15:44:16 Sessions 1 Manual Loads 0 Difficulty Rogue Special Mode None Game No. 9 Rogue 9 Adventurer 0 Explorer 0 Win Type - Total 0 Types 0/0/0/0/0/0/0/0/0 Lore% 3 Gallery% 8 Achievement% 7 Wizard Run 0 Options --------- ASCII 0 Keyboard 0 Movement Mouse Keybinds 0 Fullscreen 1 Font 18/X11Bold Map View 76x50 Tactical HUD 1 Map Filters NONE Filters NONE Steam 1 RUN: 6f3a3406-dfe5-4245-8533-b9584c86893d